fUSD/lending_fUSD_20250125
["ID","MTS","AMOUNT","RATE_DAILY","PERIOD"]
[350365692,1737814259486,-500.0,0.0001863,2]
[350365693,1737814259496,-30000.0,0.00018712,2]
[350365694,1737814259505,-279.41,0.00018719,2]
[350365695,1737814259515,-618.966623,0.00018728,2]
[350365696,1737814259525,-225.78,0.00018751,2]
[350365697,1737814259534,-500.0,0.00018767,2]
[350365698,1737814259544,-500.0,0.00018767,2]
[350365699,1737814259554,-500.0,0.00018767,2]
[350365700,1737814259565,-500.0,0.00018767,2]
[350365701,1737814259575,-760.42,0.00018767,2]
[350365702,1737814259585,-1432.64,0.00018767,2]
[350365703,1737814259595,-1572.0,0.00018767,2]
[350365704,1737814259605,-592.45,0.00018767,2]
[350365705,1737814259615,-379.63314019,0.00018767,2]
[350365706,1737814259625,-995.54,0.00018767,2]
[350365707,1737814259635,-545.41,0.00018767,2]
[350365708,1737814259645,-500.0,0.00018767,2]
[350365709,1737814259654,-1828.01,0.00018767,2]
[350365710,1737814259665,-500.0,0.00018767,2]
[350365711,1737814259674,-500.0,0.00018767,2]
[350365712,1737814259685,-11700.94181581,0.00018784,2]
[350365713,1737814259695,-1037.008,0.00018789,2]
[350365714,1737814259706,-907.0,0.00018789,2]
[350365715,1737814259717,-782.0,0.00018789,2]
[350365716,1737814259728,-1262.0,0.00018789,2]
[350365717,1737814259737,-150.0,0.00018789,2]
[350365718,1737814259747,-1175.0,0.00018789,2]
[350365719,1737814259756,-3905.0,0.00018789,2]
[350365720,1737814259767,-618.966623,0.00018866,2]
[350365721,1737814259776,-1500.0,0.000189,6]
[350365722,1737814259786,-500.0,0.00018904,2]
[350365723,1737814259796,-500.0,0.00018904,2]
[350365724,1737814259807,-500.0,0.00018904,2]
[350365725,1737814259816,-500.0,0.00018904,2]
[350365726,1737814259826,-500.0,0.00018904,2]
[350365727,1737814259836,-760.42,0.00018904,2]
[350365728,1737814259846,-1432.64,0.00018904,2]
[350365729,1737814259856,-1572.0,0.00018904,2]
[350365730,1737814259865,-592.45,0.00018904,2]
[350365731,1737814259876,-995.54,0.00018904,2]
[350365732,1737814259886,-342.0,0.00018904,2]
[350365733,1737814259895,-1828.01,0.00018904,2]
[350365734,1737814259905,-500.0,0.00018904,2]
[350365735,1737814259915,-500.0,0.00018904,2]
[350365736,1737814259924,-500.0,0.00018986,2]
[350365737,1737814259934,-650.0,0.00019,2]
[350365738,1737814259945,-618.966623,0.00019003,2]
[350365739,1737814259956,-494.75182933,0.00019041,2]
[350365740,1737814259965,-500.0,0.00019041,2]
[350365741,1737814259976,-500.0,0.00019041,2]
[350365742,1737814259986,-500.0,0.00019041,2]
[350365743,1737814259995,-760.42,0.00019041,2]
[350365744,1737814260006,-1432.64,0.00019041,2]
[350365745,1737814260015,-1572.0,0.00019041,2]
[350365746,1737814260025,-592.45,0.00019041,2]
[350365747,1737814260035,-995.54,0.00019041,2]
[350365748,1737814260044,-1828.01,0.00019041,2]
[350365749,1737814260054,-421.96,0.00019041,2]
[350365750,1737814260065,-500.0,0.00019041,2]
[350365751,1737814260077,-618.966623,0.00019141,2]
[350365752,1737814260087,-500.0,0.00019178,2]
[350365753,1737814260097,-284.89273013,0.00019178,2]
[350365754,1737814260107,-500.0,0.00019178,2]
[350365755,1737814260116,-760.42,0.00019178,2]
[350365756,1737814260126,-1432.64,0.00019178,2]
[350365757,1737814260135,-1572.0,0.00019178,2]
[350365758,1737814260144,-592.45,0.00019178,2]
[350365759,1737814260154,-995.54,0.00019178,2]
[350365760,1737814260163,-1828.01,0.00019178,2]
[350365761,1737814260173,-500.0,0.00019178,2]
[350365762,1737814260183,-333.0,0.00019205,2]
[350365763,1737814260193,-618.966623,0.00019279,2]
[350365764,1737814260204,-11700.94181581,0.00019313,2]
[350365765,1737814260214,-500.0,0.00019315,2]
[350365766,1737814260225,-500.0,0.00019315,2]
[350365767,1737814260235,-760.42,0.00019315,2]
[350365768,1737814260245,-1432.64,0.00019315,2]
[350365769,1737814260255,-1572.0,0.00019315,2]
[350365770,1737814260265,-592.45,0.00019315,2]
[350365771,1737814260275,-995.54,0.00019315,2]
[350365772,1737814260285,-1828.01,0.00019315,2]
[350365773,1737814260298,-500.0,0.00019315,2]
[350365774,1737814260309,-3457.53299457,0.00019349,2]
[350365775,1737814260318,-6969.80817374,0.00019353,2]
[350365776,1737814260328,-144528.49503334,0.00019358,2]
[350365777,1737814260339,-144528.49503334,0.0001936,2]
[350365778,1737814260348,-2438.02273514,0.00019365,2]
[350365779,1737814260358,-17355.18050734,0.00019367,2]
[350365780,1737814260374,-163.25022423,0.00019368,2]
[350365781,1737814260385,-144528.49503334,0.00019373,2]
[350365782,1737814260394,-3457.53299457,0.00019376,2]
[350365783,1737814260405,-64816.62771254,0.00019376,2]
[350365784,1737814260417,-6969.80817374,0.00019377,2]
[350365785,1737814260426,-2438.02273514,0.00019385,2]
[350365786,1737814260436,-64816.62771254,0.00019386,2]
[350365787,1737814260446,-144528.49503334,0.00019394,2]
[350365788,1737814260457,-395.41647374,0.00019406,2]
[350365789,1737814260467,-395.41647374,0.00019407,2]
[350365790,1737814260477,-3457.53299457,0.00019407,2]
[350365791,1737814260487,-2438.02273514,0.00019411,2]
[350365792,1737814260496,-559.21942684,0.00019413,2]
[350365793,1737814260507,-3457.53299457,0.00019414,2]
[350365794,1737814260517,-17355.18050734,0.00019415,2]
[350365795,1737814260528,-559.21942684,0.00019416,2]
[350365796,1737814260538,-618.966623,0.00019417,2]
[350365797,1737814260548,-225.78,0.0001942,2]
[350365798,1737814260558,-64816.62771254,0.00019427,2]
[350365799,1737814260568,-6969.80817374,0.00019429,2]
[350365800,1737814260577,-2438.02273514,0.00019429,2]
[350365801,1737814260587,-395.41647374,0.0001943,2]
[350365802,1737814260598,-64816.62771254,0.00019431,2]
[350365803,1737814260608,-6969.80817374,0.00019437,2]
[350365804,1737814260618,-1000.0,0.00019444,2]
[350365805,1737814260628,-6969.80817374,0.00019447,2]
[350365806,1737814260638,-17355.18050734,0.00019447,2]
[350365807,1737814260648,-559.21942684,0.00019448,2]
[350365808,1737814260658,-312.24345609,0.00019452,2]
[350365809,1737814260668,-499.9401309,0.00019452,2]
[350365810,1737814260677,-760.42,0.00019452,2]
[350365811,1737814260687,-1432.64,0.00019452,2]
[350365812,1737814260696,-1572.0,0.00019452,2]
[350365813,1737814260706,-592.45,0.00019452,2]
[350365814,1737814260715,-995.54,0.00019452,2]
[350365815,1737814260724,-1828.01,0.00019452,2]
[350365816,1737814260734,-527.05489956,0.00019452,2]
[350365817,1737814260744,-2438.02273514,0.00019453,2]
[350365818,1737814260753,-17355.18050734,0.00019453,2]
[350365819,1737814260763,-64816.62771254,0.00019454,2]
[350365820,1737814260772,-395.41647374,0.00019465,2]
[350365821,1737814260781,-200.0,0.00019467,2]
[350365822,1737814260791,-559.21942684,0.00019477,2]
[350365823,1737814260800,-395.41647374,0.00019478,2]
[350365824,1737814260810,-3457.53299457,0.0001948,2]
[350365825,1737814260819,-17355.18050734,0.00019487,2]
[350365826,1737814260828,-144528.49503334,0.00019496,2]
[350365827,1737814260838,-559.21942684,0.00019498,2]
[350365828,1737814260848,-150.0,0.00019502,2]
[350365829,1737814260857,-597.17207365,0.00019519,2]
[350365830,1737814260867,-150.0,0.00019526,2]
[350365831,1737814260876,-150.0,0.00019552,2]
[350365832,1737814260886,-618.966623,0.00019555,2]
[350365833,1737814260895,-1270.0,0.00019574,2]
[350365834,1737814260905,-150.0,0.00019575,2]
[350365835,1737814260914,-150.0,0.00019589,2]
[350365836,1737814260923,-760.64,0.00019589,2]
[350365837,1737814260933,-1432.69570158,0.00019589,2]
[350365838,1737814260943,-1572.16894834,0.00019589,2]
[350365839,1737814260953,-592.58376697,0.00019589,2]
[350365840,1737814260963,-995.73409093,0.00019589,2]
[350365841,1737814260973,-500.0,0.00019589,2]
[350365842,1737814260983,-150.34643673,0.00019589,2]
[350365843,1737814260992,-150.0,0.00019589,2]
[350365844,1737814261002,-1828.15348351,0.00019589,2]
[350365845,1737814261011,-150.0,0.00019589,2]
[350365846,1737814261021,-156.17335702,0.00019589,2]
[350365847,1737814261030,-500.0,0.00019589,2]
[350365848,1737814261040,-150.4877767,0.00019616,2]
[350365849,1737814261050,-625.00013937,0.00019616,2]
[350365850,1737814261060,-150.0,0.00019616,2]
[350365851,1737814261070,-951.19908191,0.00019616,2]
[350365852,1737814261079,-246.79375488,0.00019644,2]
[350365853,1737814261089,-1000.0,0.00019645,2]
[350365854,1737814261099,-500.0,0.00019645,2]
[350365855,1737814261110,-150.0,0.00019661,2]
[350365856,1737814261126,-618.966623,0.00019693,2]
[350365857,1737814261138,-618.966623,0.00019831,2]
[350365858,1737814261152,-2505.0,0.00019837,2]
[350365859,1737814261161,-11700.94181581,0.00019842,2]
[350365860,1737814261171,-208.37,0.00019863,2]
[350365861,1737814261318,-618.966623,0.00019969,2]
[350365862,1737814261328,-150.0,0.0001998,2]
[350365863,1737814261339,-500.0,0.00019999,2]
[350365864,1737814261348,-200.0,0.0002,2]
[350365865,1737814261358,-2032.31,0.0002,2]
[350365866,1737814261369,-1265.07,0.0002,2]
[350365867,1737814261378,-500.0,0.00020055,2]
[350365868,1737814261388,-150.0,0.00020069,2]
[350365869,1737814261397,-225.78,0.00020089,2]
[350365870,1737814261408,-618.966623,0.00020107,2]
[350365871,1737814261418,-150.0,0.00020167,2]
[350365872,1737814261428,-300.0,0.00020192,2]
[350365873,1737814261439,-618.966623,0.00020245,2]
[350365874,1737814261448,-150.0,0.00020305,2]
[350365875,1737814261458,-1509.07,0.00020318,2]
[350365876,1737814261468,-500.0,0.00020356,2]
[350365877,1737814261477,-150.0,0.00020365,2]
[350365878,1737814261488,-11700.94181581,0.00020371,2]
[350365879,1737814261498,-150.0,0.00020381,2]
[350365880,1737814261508,-618.966623,0.00020383,2]
[350365881,1737814261518,-150.0,0.00020397,2]
[350365882,1737814261527,-150.0,0.00020409,2]
[350365883,1737814261538,-775.6109855,0.00020482,2]
[350365884,1737814261547,-150.0,0.0002049,2]
[350365885,1737814261557,-1500.0,0.000205,2]
[350365886,1737814261567,-3000.0,0.000205,2]
[350365887,1737814261577,-150.0,0.00020507,2]
[350365888,1737814261588,-618.966623,0.00020521,2]
[350365889,1737814261598,-150.0,0.00020541,2]
[350365890,1737814261607,-177.55,0.00020548,2]
[350365891,1737814261617,-20449.32,0.00020548,2]
[350365892,1737814261626,-150.0,0.00020577,2]
[350365893,1737814261636,-279.41,0.00020591,2]
[350365894,1737814261645,-150.0,0.00020603,2]
[350365895,1737814261655,-150.0,0.00020623,2]
[350365896,1737814261664,-150.0,0.0002063,2]
[350365897,1737814261673,-613.33,0.00020633,2]
[350365898,1737814261684,-430.64066539,0.00020635,2]
[350365899,1737814261693,-150.0,0.00020645,2]
[350365900,1737814261703,-150.0,0.00020651,2]
[350365901,1737814261712,-618.966623,0.00020659,2]
[350365902,1737814261722,-500.0,0.00020659,2]
[350365903,1737814261731,-500.0,0.00020659,2]
[350365904,1737814261741,-500.0,0.00020659,2]
[350365905,1737814261750,-500.0,0.00020659,2]
[350365906,1737814261759,-500.0,0.00020659,2]
[350365907,1737814261769,-500.0,0.00020659,2]
[350365908,1737814261778,-500.0,0.00020659,2]
[350365909,1737814261787,-500.0,0.00020659,2]
[350365910,1737814261797,-500.0,0.00020659,2]
[350365911,1737814261806,-500.0,0.00020659,2]
[350365912,1737814261815,-500.0,0.00020659,2]
[350365913,1737814261825,-500.0,0.00020659,2]
[350365914,1737814261834,-500.0,0.00020659,2]
[350365915,1737814261843,-500.0,0.00020659,2]
[350365916,1737814261853,-500.0,0.00020659,2]
[350365917,1737814261863,-500.0,0.00020659,2]
[350365918,1737814261872,-500.0,0.00020659,2]
[350365919,1737814261882,-500.0,0.00020659,2]
[350365920,1737814261892,-500.0,0.00020659,2]
[350365921,1737814261902,-500.0,0.00020659,2]
[350365922,1737814261911,-500.0,0.00020659,2]
[350365923,1737814261921,-500.0,0.00020659,2]
[350365924,1737814261930,-500.0,0.00020659,2]
[350365925,1737814261940,-500.0,0.00020659,2]
[350365926,1737814261951,-500.0,0.00020659,2]
[350365927,1737814261960,-916.0,0.00020659,2]
[350365928,1737814261969,-150.0,0.00020668,2]
[350365929,1737814261978,-1227.32900888,0.00020685,2]
[350365930,1737814261988,-2000.0,0.000207,7]
[350365931,1737814261998,-597.17207365,0.00020704,2]
[350365932,1737814262008,-500.0,0.00020732,2]
[350365933,1737814262017,-150.0,0.0002075,2]
[350365934,1737814262027,-150.0,0.00020753,2]
[350365935,1737814262036,-225.78,0.00020758,2]
[350365936,1737814262046,-150.0,0.00020767,2]
[350365937,1737814262056,-1227.32900888,0.00020767,2]
[350365938,1737814262065,-150.0,0.00020769,2]
[350365939,1737814262075,-150.0,0.00020778,2]
[350365940,1737814262084,-150.0,0.00020779,2]
[350365941,1737814262093,-618.966623,0.00020797,2]
[350365942,1737814262102,-87697.185638,0.000208,2]
[350365943,1737814262112,-150.0,0.000208,2]
[350365944,1737814262122,-2500.0,0.000208,7]
[350365945,1737814262132,-200.0,0.00020811,2]
[350365946,1737814262141,-200.0,0.00020811,2]
[350365947,1737814262150,-200.0,0.00020811,2]
[350365948,1737814262160,-200.0,0.00020811,2]
[350365949,1737814262170,-200.0,0.00020811,2]
[350365950,1737814262179,-200.0,0.00020811,2]
[350365951,1737814262189,-200.0,0.00020811,2]
[350365952,1737814262199,-200.0,0.00020811,2]
[350365953,1737814262208,-200.0,0.00020811,2]
[350365954,1737814262217,-200.0,0.00020811,2]
[350365955,1737814262226,-200.0,0.00020811,2]
[350365956,1737814262236,-200.0,0.00020811,2]
[350365957,1737814262246,-200.0,0.00020811,2]
[350365958,1737814262256,-200.0,0.00020811,2]
[350365959,1737814262266,-197.0,0.00020811,2]
[350365960,1737814262276,-200.0,0.00020811,2]
[350365961,1737814262285,-200.0,0.00020811,2]
[350365962,1737814262298,-200.0,0.00020811,2]
[350365963,1737814262307,-200.0,0.00020811,2]
[350365964,1737814262317,-200.0,0.00020811,2]
[350365965,1737814262326,-150.0,0.00020828,2]
[350365966,1737814262336,-150.0,0.00020846,2]
[350365967,1737814262345,-150.0,0.00020848,2]
[350365968,1737814262354,-150.0,0.00020872,2]
[350365969,1737814262363,-1227.32900888,0.00020877,2]
[350365970,1737814262373,-150.0,0.00020882,2]
[350365971,1737814262383,-700.0,0.00020891,2]
[350365972,1737814262392,-700.0,0.00020891,2]
[350365973,1737814262402,-700.0,0.00020891,2]
[350365974,1737814262412,-507.51937713,0.00020891,2]
[350365975,1737814262421,-823.59461486,0.00020893,2]
[350365976,1737814262430,-152.40766222,0.00020893,2]
[350365977,1737814262440,-153.6146258,0.00020896,2]
[350365978,1737814262450,-3230.8549395,0.00020896,2]
[350365979,1737814262460,-21834.1570741,0.00020896,2]
[350365980,1737814262469,-840.38850313,0.000209,2]
[350365981,1737814262479,-2747.50209909,0.000209,2]
[350365982,1737814262488,-40012.92276854,0.000209,2]
[350365983,1737814262498,-500.0,0.000209,7]
[350365984,1737814262508,-2093.92756,0.000209,2]
[350365985,1737814262517,-220.1213674,0.000209,3]
[350365986,1737814262526,-537.81336466,0.000209,2]
[350365987,1737814262536,-11700.94181581,0.000209,2]
[350365988,1737814262547,-26115.46509026,0.000209,2]
[350365989,1737814262556,-3928.45644126,0.000209,2]
[350365990,1737814262567,-272.03539422,0.000209,2]
[350365991,1737814262577,-5126.7790325,0.0002091,2]
[350365992,1737814262586,-1457.6589765,0.0002091,2]
[350365993,1737814262595,-150.0,0.00020918,2]
[350365994,1737814262606,-150.0,0.00020924,2]
[350365995,1737814262615,-150.0,0.00020928,2]
[350365996,1737814262626,-618.966623,0.00020934,2]
[350365997,1737814262637,-500.0,0.00020958,2]
[350365998,1737814262646,-33943.0,0.00020959,2]
[350365999,1737814262656,-9459.0,0.00020959,2]
[350366000,1737814262665,-18529.0,0.00020959,2]
[350366001,1737814262674,-150.0,0.00020961,2]
[350366002,1737814262684,-3652.14164612,0.00020975,2]
[350366003,1737814262694,-3652.14164608,0.00020975,2]
[350366004,1737814262703,-150.0,0.00020982,2]
[350366005,1737814262712,-5185.8530296,0.00020986,2]
[350366006,1737814262722,-1474.455047,0.00020986,2]
[350366007,1737814262731,-153.6146258,0.00020986,2]
[350366008,1737814262741,-3268.0828977,0.00020986,2]
[350366009,1737814262750,-17912.959987,0.00020986,2]
[350366010,1737814262760,-1227.32900888,0.00020986,2]
[350366011,1737814262769,-150.0,0.00020986,4]
[350366012,1737814262778,-150.0,0.00020986,4]
[350366013,1737814262788,-173.15272143,0.00020986,4]
[350366014,1737814262798,-150.0,0.00020986,4]
[350366015,1737814262809,-150.17856381,0.00020986,4]
[350366016,1737814262818,-150.29206,0.00020986,4]
[350366017,1737814262827,-150.0,0.00020986,4]
[350366018,1737814262836,-150.0,0.00020986,4]
[350366019,1737814262846,-323.35,0.0002099,5]
[350366020,1737814262855,-150.0,0.00020991,2]
[350366021,1737814262866,-500.0,0.00020992,2]
[350366022,1737814262875,-315987.09641939,0.00020993,4]
[350366023,1737814262884,-4190.8,0.00020993,4]
[350366024,1737814262894,-150.0,0.00020997,2]
[350366025,1737814262904,-84238.50328188,0.00020999,5]
[350366026,1737814262913,-500.0,0.00020999,2]
[350366027,1737814262922,-150.0,0.00020999,2]
[350366028,1737814262932,-500.0,0.00020999,2]
[350366029,1737814262942,-500.0,0.00020999,2]
[350366030,1737814262951,-500.0,0.00020999,2]
[350366031,1737814262960,-500.0,0.00020999,2]
[350366032,1737814262970,-500.0,0.00020999,2]
[350366033,1737814262979,-500.0,0.00020999,2]
[350366034,1737814262988,-500.0,0.00020999,2]
[350366035,1737814262998,-500.0,0.00020999,2]
[350366036,1737814263008,-500.0,0.00020999,2]
[350366037,1737814263018,-500.0,0.00020999,2]
[350366038,1737814263028,-500.0,0.00020999,2]
[350366039,1737814263037,-382.64,0.00020999,2]
[350366040,1737814263047,-3013384.37420585,0.00021,15]
[350366041,1737814263056,-2110.0,0.00021,2]
[350366042,1737814263067,-30288.38,0.00021,2]
[350366043,1737814263076,-5292.46648249,0.00021,2]
[350366044,1737814263086,-3228.9,0.00021,5]
[350366045,1737814263095,-3580.21,0.00021,2]
[350366046,1737814263105,-700.0,0.00021,2]
[350366047,1737814263115,-151.0,0.00021,2]
[350366048,1737814263124,-151.0,0.00021,2]
[350366049,1737814263133,-151.0,0.00021,2]
[350366050,1737814263143,-151.0,0.00021,2]
[350366051,1737814263152,-1000.0,0.00021,2]
[350366052,1737814263161,-151.0,0.00021,2]
[350366053,1737814263171,-153.534509,0.00021,2]
[350366054,1737814263181,-154.270757,0.00021,2]
[350366055,1737814263190,-264.551185,0.00021,2]
[350366056,1737814263200,-152.598299,0.00021,2]
[350366057,1737814263209,-151.0,0.00021,2]
[350366058,1737814263219,-264.551185,0.00021,2]
[350366059,1737814263228,-154.990602,0.00021,2]
[350366060,1737814263237,-151.0,0.00021,2]
[350366061,1737814263249,-151.0,0.00021,2]
[350366062,1737814263259,-151.0,0.00021,2]
[350366063,1737814263269,-151.0,0.00021,2]
[350366064,1737814263279,-151.0,0.00021,2]
[350366065,1737814263291,-151.0,0.00021,2]
[350366066,1737814263303,-371.47,0.00021,2]
[350366067,1737814263312,-151.0,0.00021,2]
[350366068,1737814263322,-151.0,0.00021,2]
[350366069,1737814263332,-153.051506,0.00021,2]
[350366070,1737814263342,-271.865528,0.00021,2]
[350366071,1737814263352,-271.865528,0.00021,2]
[350366072,1737814263362,-151.0,0.00021,2]
[350366073,1737814263372,-151.0,0.00021,2]
[350366074,1737814263382,-151.0,0.00021,2]
[350366075,1737814263392,-151.0,0.00021,2]
[350366076,1737814263402,-151.0,0.00021,2]
[350366077,1737814263412,-151.0,0.00021,2]
[350366078,1737814263422,-151.0,0.00021,2]
[350366079,1737814263432,-151.0,0.00021,2]
[350366080,1737814263442,-151.0,0.00021,2]
[350366081,1737814263451,-151.0,0.00021,2]
[350366082,1737814263460,-624.038066,0.00021,2]
[350366083,1737814263470,-624.038066,0.00021,2]
[350366084,1737814263479,-151.0,0.00021,2]
[350366085,1737814263492,-151.0,0.00021,2]
[350366086,1737814263502,-157.74491,0.00021,2]
[350366087,1737814263512,-150.0,0.00021003,4]
[350366088,1737814263522,-634.83,0.00021015,2]
[350366089,1737814263531,-150.0,0.00021016,4]
[350366090,1737814263541,-150.0,0.00021021,4]
[350366091,1737814263552,-150.0,0.00021024,2]
[350366092,1737814263563,-150.0,0.00021034,2]
[350366093,1737814263572,-150.0,0.00021038,4]
[350366094,1737814263582,-150.0,0.0002104,4]
[350366095,1737814263592,-150.0,0.00021041,2]
[350366096,1737814263602,-438.79,0.00021041,2]
[350366097,1737814263612,-773.64,0.00021041,2]
[350366098,1737814263621,-438.79,0.00021041,2]
[350366099,1737814263631,-773.64,0.00021041,2]
[350366100,1737814263641,-438.79,0.00021041,2]
[350366101,1737814263650,-150.0,0.00021046,4]
[350366102,1737814263660,-152.0,0.00021051,5]
[350366103,1737814263669,-150.0,0.00021055,4]
[350366104,1737814263679,-150.0,0.00021056,2]
[350366105,1737814263689,-150.0,0.00021059,2]
[350366106,1737814263698,-823.59461482,0.00021061,2]
[350366107,1737814263707,-150.0,0.00021062,2]
[350366108,1737814263717,-1227.32900888,0.00021068,2]
[350366109,1737814263726,-150.0,0.00021072,2]
[350366110,1737814263736,-150.0,0.00021072,4]
[350366111,1737814263747,-618.966623,0.00021072,2]
[350366112,1737814263757,-150.0,0.00021076,4]
[350366113,1737814263767,-150.0,0.00021084,2]
[350366114,1737814263777,-150.0,0.00021086,2]
[350366115,1737814263828,-150.0,0.00021089,4]
[350366116,1737814263838,-150.0,0.00021093,4]
[350366117,1737814263847,-150.0,0.00021097,2]
[350366118,1737814263857,-1578.07749,0.000211,6]
[350366119,1737814263867,-150.0,0.00021106,4]
[350366120,1737814263877,-150.0,0.00021107,4]
[350366121,1737814263887,-150.0,0.00021113,2]
[350366122,1737814263896,-150.0,0.00021113,2]
[350366123,1737814263906,-150.0,0.00021124,4]
[350366124,1737814263916,-150.0,0.00021129,2]
[350366125,1737814263925,-150.0,0.00021133,2]
[350366126,1737814263935,-150.0,0.00021135,2]
[350366127,1737814263944,-150.0,0.00021135,4]
[350366128,1737814263954,-500.0,0.00021136,2]
[350366129,1737814263963,-150.0,0.00021141,4]
[350366130,1737814263973,-150.0,0.00021143,2]
[350366131,1737814263982,-150.0,0.00021146,4]
[350366132,1737814263992,-150.0,0.00021155,4]
[350366133,1737814264003,-150.0,0.00021158,4]
[350366134,1737814264012,-151.14570161,0.00021163,2]
[350366135,1737814264021,-150.0,0.00021165,4]
[350366136,1737814264031,-1000.0,0.00021167,2]
[350366137,1737814264040,-150.0,0.00021175,4]
[350366138,1737814264050,-1227.32900888,0.00021178,2]
[350366139,1737814264060,-594.69,0.00021178,2]
[350366140,1737814264070,-982.28,0.00021178,2]
[350366141,1737814264080,-300.0,0.00021178,2]
[350366142,1737814264090,-298.52,0.00021178,2]
[350366143,1737814264100,-150.0,0.00021178,2]
[350366144,1737814264109,-150.0,0.00021189,2]
[350366145,1737814264120,-150.0,0.00021192,4]
[350366146,1737814264130,-150.0,0.00021195,4]
[350366147,1737814264140,-10359.0,0.00021198,2]
[350366148,1737814264150,-150.0,0.000212,4]
[350366149,1737814264160,-1000.0,0.000212,2]
[350366150,1737814264170,-150.0,0.00021207,2]
[350366151,1737814264180,-150.0,0.0002121,4]
[350366152,1737814264190,-618.966623,0.0002121,2]
[350366153,1737814264200,-268267.01227533,0.0002122,2]
[350366154,1737814264209,-53915.8714793,0.0002122,2]
[350366155,1737814264220,-150.0,0.00021225,4]
[350366156,1737814264231,-152.40766219,0.00021225,2]
[350366157,1737814264244,-150.0,0.00021227,4]
[350366158,1737814264256,-823.59461482,0.00021229,2]
[350366159,1737814264273,-272.03539422,0.00021233,2]
[350366160,1737814264286,-150.0,0.0002124,2]
[350366161,1737814264305,-150.0,0.00021244,4]
[350366162,1737814264316,-150.0,0.00021245,2]
[350366163,1737814264328,-150.0,0.00021253,2]
[350366164,1737814264339,-150.0,0.00021253,4]
[350366165,1737814264350,-150.0,0.00021254,2]
[350366166,1737814264361,-150.0,0.00021255,4]
[350366167,1737814264376,-150.0,0.00021258,2]
[350366168,1737814264388,-150.0,0.00021261,4]
[350366169,1737814264401,-500.0,0.00021273,2]
[350366170,1737814264412,-150.0,0.00021278,4]
[350366171,1737814264422,-150.0,0.00021284,4]
[350366172,1737814264433,-1227.32900888,0.00021288,2]
[350366173,1737814264443,-150.0,0.00021296,4]
[350366174,1737814264453,-6016.8848,0.000213,8]
[350366175,1737814264464,-31534.22245389,0.000213,2]
[350366176,1737814264474,-10330.10885012,0.000213,2]
[350366177,1737814264485,-150.0,0.00021306,4]
[350366178,1737814264496,-150.0,0.00021313,4]
[350366179,1737814264506,-150.0,0.00021314,2]
[350366180,1737814264517,-150.0,0.00021314,4]
[350366181,1737814264527,-150.0,0.00021316,2]
[350366182,1737814264537,-150.0,0.00021324,4]
[350366183,1737814264547,-150.0,0.0002133,4]
[350366184,1737814264557,-2150.0,0.0002134,2]
[350366185,1737814264567,-150.0,0.00021344,4]
[350366186,1737814264578,-150.0,0.00021347,4]
[350366187,1737814264588,-618.966623,0.00021348,2]
[350366188,1737814264598,-150.0,0.0002135,2]
[350366189,1737814264608,-150.0,0.00021356,2]
[350366190,1737814264617,-150.0,0.0002136,4]
[350366191,1737814264626,-150.0,0.00021364,4]